Cogmind - Beta 13 @@@ ROGUE MODE // 2024.04.05 @ 15:24:29 Player: Aklangi Result: Destroyed by G-47 Trooper with Particle Gun Performance ------------- Evolutions (2) 1000 Regions Visited (4) 800 Robots Destroyed (35) 175 Value Destroyed (983) 983 Prototype IDs (6) 120 Alien Tech Used (0) 0 Bonus (136) 136 TOTAL SCORE: 3214 Bonus ------- Follower Combat Kills 201 Friendly Fire -65 Cogmind --------- Core Integrity 0/550 Matter 300/300 Energy 100/100 System Corruption 1% Temperature Cool (18) Movement Core (1350) Ox26 Location -8/Materials Parts ------- > --- POWER (1) -------- (None) > --- PROPULSION (4) --- (None) > --- UTILITY (4) ------ Huge Storage Unit Hacking Suite > --- WEAPON (2) ------- (None) > --- INVENTORY (25) --- Light Deuterium Engine Small Storage Unit Compact Matter Pod (150) Improved Targeting Computer Improved Medium Armor Plating Shock Rifle Heavy Assault Rifle Improved Assault Rifle Improved Grenade Launcher Maul Peak State ------------ > --- POWER ------------ Deuterium Engine > --- PROPULSION ------- Light Treads Light Treads Subdweller Monowheel Subdweller Monowheel > --- UTILITY ---------- Huge Storage Unit Improved Medium Armor Plating Hacking Suite System Shield > --- WEAPON ----------- Assault Cannon Dirty Datajack > --- INVENTORY -------- Light Deuterium Engine Light Treads Titanium Leg Cesium-ion Thruster Small Storage Unit Compact Matter Pod Improved Targeting Computer Improved Medium Armor Plating Shock Rifle Improved Assault Rifle Improved Grenade Launcher Maul [Rating: 32] Favorites ----------- Power Ion Engine Engine Ion Engine Propulsion Aluminum Leg Treads Light Treads Leg Aluminum Leg Wheel Subdweller Monowheel Utility Core Shielding Storage Medium Storage Unit Hackware System Shield Protection Core Shielding Weapon Small Laser Energy Gun Small Laser Energy Cannon Subdweller Beam Cannon Ballistic Gun Light Assault Rifle Ballistic Cannon Assault Cannon Launcher Rocket Launcher Special Weapon Flamer Special Melee Weapon Dirty Datajack Build | -11 -10 -10 -10 -8 ------- Run | Yrd Mat Min Sub Mat Slots Evolved 4 | . . . . 4 Power . | . . . . . Propulsion 2 | . . . . 2 Utility 2 | . . . . 2 Weapon . | . . . . . Parts Attached 62 | 5 10 13 15 19 Power 8 | 1 1 1 3 2 Engine 8 | 1 1 1 3 2 Core . | . . . . . Reactor . | . . . . . Propulsion 19 | 2 2 5 4 6 Treads 4 | . . . . 4 Leg 11 | 2 2 5 . 2 Wheel 4 | . . . 4 . Hover . | . . . . . Flight . | . . . . . Utility 8 | . 2 . 2 4 Device . | . . . . . Storage 2 | . 1 . 1 . Processor . | . . . . . Hackware 2 | . . . . 2 Protection 4 | . 1 . 1 2 Artifact . | . . . . . Weapon 27 | 2 5 7 6 7 Energy Gun 6 | 1 1 3 . 1 Energy Cannon 1 | . . . 1 . Ballistic Gun 9 | 1 4 1 2 1 Ballistic Cannon 3 | . . . . 3 Launcher 5 | . . 2 2 1 Special Weapon 2 | . . 1 1 . Impact Weapon . | . . . . . Slashing Weapon . | . . . . . Piercing Weapon . | . . . . . Special Melee Weapon 1 | . . . . 1 Unidentified Prototypes 1 | . . . . 1 Parts Lost 22 | . 4 3 3 12 Power 2 | . . . 1 1 Propulsion 11 | . 2 1 1 7 Utility 2 | . . . . 2 Weapon 7 | . 2 2 1 2 Highest Loss Streak 10 | . 3 3 2 10 To Critical Strikes . | . . . . . Average Slot Usage (%) 90 | . 88 99 82 88 Engine 11 | . 14 14 12 8 Treads 4 | . . . . 13 Leg 14 | . 24 27 3 3 Wheel 7 | . . . 22 10 Storage 9 | . 8 14 4 9 Hackware 6 | . . . . 17 Protection 11 | . 12 14 10 8 Energy Gun 6 | . 7 13 1 3 Energy Cannon 2 | . . . 10 2 Ballistic Gun 6 | . 20 5 3 1 Ballistic Cannon 1 | . . . . 4 Launcher 3 | . . 7 7 1 Special Melee Weapon 1 | . . . . 4 Naked Turns . | . . . . . Heaviest Build 115 | 7 20 22 101 115 Greatest Support 60 | 20 20 20 40 60 Greatest Overweight (x) 28 | 2 5 1 2 28 Average Overweight (x) . | . . . . 1 Largest Inventory Capacity 25 | 5 10 10 25 25 Average Capacity 14 | 5 7 10 10 25 Most Carried 13 | 1 4 7 8 13 Average Carried 5 | . 2 4 4 9 Final Capacity 25 | 5 10 10 25 25 Final Carried 10 | 1 2 5 4 10 Class Distribution -------------------- 34% | Hacker-Mutant 31% | Mutant 25% | Scavenger-Mutant 9% | Subdweller-Mutant Dominant Class ---------------- Mutant | -10/Materials Scavenger-Mutant | -10/Mines Subdweller-Mutant | -10/Subcaves Hacker-Mutant | -8/Materials Resources | -11 -10 -10 -10 -8 ----------- Run | Yrd Mat Min Sub Mat Matter Collected 1292 | 198 310 200 176 408 Remotely . | . . . . . Salvage Created 1307 | . 576 365 36 330 Parts 67 | . 28 20 2 17 Haulers Intercepted 4 | . 2 . . 2 Recyclers Shooed 1 | . . . . 1 Parts Field Recycled . | . . . . . Retrieved Matter . | . . . . . Parts Self-Destructed 8 | . . . 8 . Prevented . | . . . . . Kills | -11 -10 -10 -10 -8 ------- Run | Yrd Mat Min Sub Mat Combat Hostiles Destroyed 28 | . 11 13 1 3 Guns 16 | . 10 6 . . Cannons 1 | . . . 1 . AOE 11 | . 1 7 . 3 Classes Destroyed 11 | . 7 2 1 1 Worker 1 | . 1 . . . Tunneler 1 | . . 1 . . Hauler 4 | . 2 . . 2 Recycler 2 | . 1 . . 1 Mechanic 1 | . 1 . . . Operator 1 | . 1 . . . Swarmer 3 | . 3 . . . Grunt 20 | . 8 10 . 2 Sentry 1 | . . . . 1 Subdweller 1 | . . . 1 . Assembled 3 | . . 3 . . Best Kill Streak 8 | . 4 8 1 2 Combat Bots Only 7 | . 3 7 1 1 Max Kills in Single Turn 4 | . 2 4 1 2 Gunslinging . | . . . . . Exploded 2 | . 1 2 . 1 Melee . | . . . . . Uniques/NPCs Destroyed . | . . . . . Combat | -11 -10 -10 -10 -8 -------- Run | Yrd Mat Min Sub Mat Hostile Shots Fired 261 | . 72 32 5 152 Missed 76 | . 22 15 3 36 Damage Taken 3164 | . 652 418 156 1938 Core 720 | . 93 41 32 554 Absorbed by Shields . | . . . . . Redirected to Shielding 28 | . 20 8 . . Core Remaining (%) 66 | 100 . . 33 . Volleys Fired 99 | . 49 28 6 16 Largest 2 | . 2 2 2 2 Hottest 130 | . 60 100 80 130 Shots Fired 175 | . 90 50 7 28 Gun 141 | . 90 37 1 13 Cannon 19 | . . . 5 14 Launcher 11 | . . 9 1 1 Special 4 | . . 4 . . Kinetic 108 | . 79 15 . 14 Thermal 43 | . 11 26 6 . Explosive 11 | . . 9 1 1 Electromagnetic 13 | . . . . 13 Robot Hit Streak 11 | . 8 9 6 11 Robot Miss Streak 4 | . 4 4 2 2 Penetration Max . | . . . . . Secondary Targets 4 | . 4 . . . Max Gunslinging Chain 1 | . 1 . . . Shots Hit Robots 117 | . 55 24 5 33 Core Hits 73 | . 29 27 3 14 Critical Kills . | . . . . . Critical Parts Destroyed . | . . . . . Critical Strikes 1 | . . . . 1 Blast 1 | . . . . 1 Melee Attacks 16 | . . . . 16 Impact . | . . . . . Slashing . | . . . . . Piercing 16 | . . . . 16 Sneak Attacks . | . . . . . Combat Hostiles . | . . . . . Follow-up Attacks . | . . . . . Damage Inflicted 2270 | . 812 742 152 564 Guns 1071 | . 633 266 11 161 Cannons 299 | . . . 78 221 Explosions 824 | . 178 452 63 131 Melee 37 | . . . . 37 Ramming 15 | . 1 . . 14 Kinetic 801 | . 522 58 . 221 Thermal 705 | . 289 232 89 95 Explosive 551 | . . 452 63 36 Electromagnetic 161 | . . . . 161 Impact . | . . . . . Slashing . | . . . . . Piercing 37 | . . . . 37 Highest Corruption 1 | . . . . 1 Average Corruption 1 | . . . . 1 Corruption Purged . | . . . . . Corruption Blocked . | . . . . . Effects 4 | . . . . 4 Message Errors 2 | . . . . 2 Matter Fused 1 | . . . . 1 Data Loss (minor) 1 | . . . . 1 Overload Shots . | . . . . . Overflow Damage 172 | . 99 63 . 10 Projectiles 4 | . . . . 4 Explosions 168 | . 99 63 . 6 Melee . | . . . . . Knockbacks 3 | . . . . 3 Impact . | . . . . . Kinetic 3 | . . . . 3 Secondary . | . . . . . Self-Inflicted Damage 317 | . 84 193 33 7 Shots 9 | . 1 7 1 . Rammed 1 | . . . . 1 Targets Rammed 2 | . 1 . . 1 Kicked 1 | . 1 . . . Crushed . | . . . . . Highest Temperature 244 | . 64 244 . 99 Average Temperature 51 | . 20 76 . 34 Received Heat Transfer 1143 | . 297 135 . 711 Siege Activations . | . . . . . Robots Corrupted . | . . . . . Combat Hostiles . | . . . . . Parts Fried . | . . . . . Impact Corruptions . | . . . . . Robots Melted . | . . . . . Combat Hostiles . | . . . . . Parts Melted 1 | . 1 . . . Heat Transferred 1107 | . 450 521 136 . Parts Sabotaged . | . . . . . Parts Stolen . | . . . . . Parts Stripped . | . . . . . Power Chain Reactions 1 | . . . . 1 Alert | -11 -10 -10 -10 -8 ------- Run | Yrd Mat Min Sub Mat Peak Influence 308 | . 308 272 . 120 Initial 66 | . . 66 . . Average 60 | . 116 78 . 19 Maximum Alert Level 1 | . 1 1 . . Low Security (%) 96 | 100 89 98 . 100 Level 1 3 | . 10 1 . . Level 2 . | . . . . . Level 3 . | . . . . . Level 4 . | . . . . . Level 5 . | . . . . . High Security . | . . . . . Max Security . | . . . . . Squads Dispatched 8 | . 3 1 . 4 Investigation 3 | . 2 . . 1 Extermination . | . . . . . Reinforcement 2 | . 1 . . 1 Assault 1 | . . 1 . . Garrison 2 | . . . . 2 Intercept . | . . . . . Searches Triggered . | . . . . . Construction Impeded . | . . . . . Haulers Reinforced . | . . . . . Active Scanning Responses . | . . . . . Cargo Convoy Interrupts . | . . . . . Stealth | -11 -10 -10 -10 -8 --------- Run | Yrd Mat Min Sub Mat Distress Signals 3 | . 1 . . 2 Communications Jammed . | . . . . . Distress Signals . | . . . . . Times Spotted 71 | . 22 13 3 33 Peak Tracking Total 10 | . 6 4 2 10 Tactical Retreats 2 | . . . . 2 Traps | -11 -10 -10 -10 -8 ------- Run | Yrd Mat Min Sub Mat Traps Triggered 4 | . 1 . . 3 Indirectly . | . . . . . Trap Hack Attempts . | . . . . . Triggered . | . . . . . Disarmed 6 | . 6 . . . Reprogrammed . | . . . . . Reused . | . . . . . Traps Extracted . | . . . . . Installed . | . . . . . Triggered . | . . . . . Machines | -11 -10 -10 -10 -8 ---------- Run | Yrd Mat Min Sub Mat Machines Disabled 5 | . 3 . . 2 Max in Single Turn 3 | . 3 . . 1 Garrison Access 1 | . . . . 1 Machines Repaired . | . . . . . Machines Dismantled . | . . . . . Machines Sabotaged . | . . . . . Overloaded Fab Kills . | . . . . . Hacking | -11 -10 -10 -10 -8 --------- Run | Yrd Mat Min Sub Mat Machines Accessed 12 | . 5 . . 7 Terminals 10 | . 5 . . 5 Fabricators . | . . . . . Repair Stations . | . . . . . Recycling Units . | . . . . . Scanalyzers 1 | . . . . 1 Garrison Access 1 | . . . . 1 Total Hacks 35 | . 16 . . 19 Successful 19 | . 8 . . 11 Failed 16 | . 8 . . 8 Catastrophic 4 | . 2 . . 2 Database Lockouts . | . . . . . Manual 7 | . 3 . . 4 Terminals 32 | . 16 . . 16 Fabricators . | . . . . . Repair Stations . | . . . . . Recycling Units . | . . . . . Scanalyzers 1 | . . . . 1 Garrison Access 2 | . . . . 2 Terminal Hacks 17 | . 8 . . 9 Record 1 | . 1 . . . Prototype ID Bank 3 | . 1 . . 2 Branch Access Points 2 | . . . . 2 Alert Level 2 | . 1 . . 1 Unreport Threat 1 | . . . . 1 Locate Traps 2 | . 1 . . 1 Disarm Traps 1 | . 1 . . . Dispatch Records 1 | . 1 . . . Maintenance Status 2 | . 2 . . . Transport Status 1 | . . . . 1 Hauler Manifests 1 | . . . . 1 Fabricator Hacks . | . . . . . Repair Station Hacks . | . . . . . Recycling Unit Hacks . | . . . . . Scanalyzer 1 | . . . . 1 Insert Component 1 | . . . . 1 Garrison Access Hacks 1 | . . . . 1 Seal Access 1 | . . . . 1 Unauthorized Hacks . | . . . . . Terminals . | . . . . . Fabricators . | . . . . . Repair Stations . | . . . . . Recycling Units . | . . . . . Scanalyzers . | . . . . . Garrison Access . | . . . . . Data Cores Recovered . | . . . . . Used . | . . . . . Hacking Detections 11 | . 5 . . 6 Full Trace Events 1 | . 1 . . . Feedback Events . | . . . . . Feedback Blocked . | . . . . . Robot Schematics Acquired . | . . . . . Robots Built . | . . . . . Authchips . | . . . . . Time . | . . . . . Total Robot Build Rating . | . . . . . Part Schematics Acquired . | . . . . . Parts Built . | . . . . . Authchips . | . . . . . Time . | . . . . . Total Part Build Rating . | . . . . . Parts Repaired . | . . . . . Time . | . . . . . Parts Recycled . | . . . . . Recycled Matter . | . . . . . Retrieved Matter . | . . . . . Retrieved Components . | . . . . . Parts Scanalyzed . | . . . . . Part Schematics Acquired . | . . . . . Parts Damaged . | . . . . . Bothacking | -11 -10 -10 -10 -8 ------------ Run | Yrd Mat Min Sub Mat Used RIF Installer . | . . . . . Robots Hacked . | . . . . . Non-combat . | . . . . . Combat . | . . . . . Robot Hacks Applied . | . . . . . Relay Couplers Released . | . . . . . Fabnet Peak Effective % . | . . . . . Robots Rewired . | . . . . . Allies Hacked . | . . . . . Hacks Repelled . | . . . . . Allies | -11 -10 -10 -10 -8 -------- Run | Yrd Mat Min Sub Mat Total Allies 7 | . . 4 . 3 Largest Group 3 | . . 3 1 2 Highest-Rated Group 40 | . . 40 31 31 Highest-Rated Ally 31 | . . 31 31 31 Total Orders . | . . . . . Ally Attacks 33 | . . 11 4 18 Total Damage 513 | . . 87 62 364 Kills 6 | . . . 1 5 Allies Corrupted . | . . . . . Allies Melted . | . . . . . Intel | -11 -10 -10 -10 -8 ------- Run | Yrd Mat Min Sub Mat Robot Analysis Total . | . . . . . Derelict Logs Recovered 3 | . . 2 1 . Drone Launches . | . . . . . Drone Recoveries . | . . . . . Exploration | -11 -10 -10 -10 -8 ------------- Run | Yrd Mat Min Sub Mat Turns Passed 3156 | 77 634 832 504 1109 Spaces Moved 1866 | 62 371 466 364 603 Core 19 | 12 5 . . 2 Treads 155 | . . . . 155 Legs 921 | 50 366 466 39 . Wheels 771 | . . . 325 446 Hover . | . . . . . Flight . | . . . . . Fastest Speed 50 | 50 120 120 110 130 Average Speed 146 | 112 126 155 125 168 Slowest Speed 1450 | 150 300 190 260 1450 Overloaded Moves . | . . . . . Propulsion Burnouts . | . . . . . Robots Hopped . | . . . . . Cave-ins Triggered . | . . . . . Exploration Rate (%) 50 | 5 77 93 23 52 Regions Visited 4 Branch Regions 2 Pre-discovered Areas 1 | . . 1 . . Known Exits Taken . | . . . . . Unknown Exits Taken 4 | 1 1 1 1 . Scrap Searched 6 | . . 1 5 . Spaces Dug 15 | . . . . 15 Terrain Destroyed 112 | . 29 53 10 20 Melee . | . . . . . Projectile 1 | . . . . 1 AOE 111 | . 29 53 10 19 Terrain Rammed . | . . . . . Walls Destroyed . | . . . . . Machines Disabled . | . . . . . Actions | -11 -10 -10 -10 -8 --------- Run | Yrd Mat Min Sub Mat Total 2105 | 67 446 515 401 676 Wait 16 | . 12 2 . 2 Move 1862 | 61 370 465 363 603 Hop . | . . . . . Pick Up 24 | 1 3 3 6 11 Fast Attach 21 | 5 4 1 3 8 Attach 8 | . 2 2 2 2 Detach . | . . . . . Swap 33 | . 4 10 10 9 Drop 21 | . 1 4 8 8 Fire 99 | . 49 28 6 16 Melee 16 | . . . . 16 Ram 1 | . . . . 1 Kick 1 | . 1 . . . Crush . | . . . . . Escape Stasis . | . . . . . Rewire . | . . . . . Trap . | . . . . . Miscellaneous 3 | . . . 3 . Route ------- -11/Scrapyard -10/Materials (discovered 4 exits: [*Mat x2] / [*Min x2]) -10/Mines (discovered 3 exits: [*Mat x2] / [*Sub]) -10/Subcaves -8/Materials (discovered 1 exit: Fac) History --------- Turn | Location | Event 11 | -11/Scrapyard | Discovered new exit (range 16) 78 | -11/Scrapyard | Entered Materials 151 | -10/Materials | Discovered new exit (range 7) 286 | -10/Materials | Discovered new exit (range 15) 302 | -10/Materials | Build established: Mutant 373 | -10/Materials | Discovered new exit (range 13) 385 | -10/Materials | Discovered new exit (range 15) 517 | -10/Materials | Lost 3 parts (1n2w) 712 | -10/Materials | Entered Mines 718 | -10/Mines | Assisted by bots powering up and referring to "LRC-V3" 781 | -10/Mines | Lost 3 allies 847 | -10/Mines | Learned location of Storage (-7) 851 | -10/Mines | Discovered new exit (range 6) 928 | -10/Mines | Learned 2 Materials zone layouts 1001 | -10/Mines | Excavation squad dispatched 1001 | -10/Mines | A large section of the Mines collapsed 1060 | -10/Mines | Discovered new exit (range 8) 1067 | -10/Mines | Received a Rocket Launcher from a helpful Derelict 1073 | -10/Mines | Destroyed 7 combat bots 1079 | -10/Mines | Lost 3 parts (1n2w) 1083 | -10/Mines | Build established: Scavenger-Mutant 1104 | -10/Mines | Core integrity fell below 50% 1446 | -10/Mines | Met a Derelict testing a Signal Generator 1519 | -10/Mines | Discovered new exit (range 7) 1544 | -10/Mines | Entered Subcaves 1544 | -10/Subcaves | Accompanied by 1 ally 1591 | -10/Subcaves | Learned 2 Materials zone layouts 1743 | -10/Subcaves | Discovered new exit (range 7) 2048 | -10/Subcaves | Entered Materials 2048 | -8/Materials | Accompanied by 1 ally 2048 | -8/Materials | Evolved 4 slots: Propulsion x2, Utility x2 2049 | -8/Materials | Identified exit to Factory 2376 | -8/Materials | Build established: Hacker-Mutant 2555 | -8/Materials | Garrison activated, responded to threat 2899 | -8/Materials | Garrison activated, responded to threat 3146 | -8/Materials | Core integrity fell below 50% 3153 | -8/Materials | Core integrity fell below 20% 3157 | -8/Materials | Destroyed by G-47 Trooper with Particle Gun Last Messages --------------- Deleted hostile record. 03135_ R-06 Scavenger collects Welding Torch. 03136_ Penetrated by Slug. 03137_ Assault Cannon destroyed. 03138_ R-06 Scavenger collects Carbon-fiber Leg. 03139_ Penetrated by Slug. 03139_ G-47 Trooper destroyed. 03139_ M-13 Machinist repairs Y-45 Defender. 03140_ System Shield destroyed. 03142_ R-06 Scavenger collects Imp. Heat Sink. 03142_ Penetrated by Slug. 03145_ Titanium Leg destroyed. 03146_ 0TWGNZH6TGU5D3 |ZTJNYXQYJNLGW3K&HW 03146_ W-25 Informer sends out distress signal. 03146_ Dirty Datajack destroyed. 03147_ The unstable cave ceiling collapses. 03147_ 37 Matter crushed. 03151_ Slug penetrates Wall. 03156_ VSS Leg destroyed. [Achievement: Achiever] Map ----- +----------------------------------------------------+ | # # """"" #???????????????????????????????? | | # """"" #???????????????????????????????? | | # """"" #??????######???????????????????? | | + """"" #??????# ???????????????????? | | # """"" #??????# "T" ???????????????????? | | # """"" #??????# ???????????????????? | | # # """"" #??????# ???????????????????? | | ### ### #??????# ???????????????????? | | ??# #?##########??????# ???????????????????? | | ??# #########?????????######???????????????????? | | ??# ## #????????#######???????????????????? | | ??# ## T #????????# ???????????????????? | | ??# ## #????????# ???????????????????? | | ??# ## #????????# a ???????????????????? | | ??# ## #????????# #?????????????????????? | | ??# ## """ #????????# #?????????????????????? | | ?## ## """ #????????# #?????????????????????? | | ## # """ #????????# #?????????????????????? | | # #????????# #?????????????????????? | | + """ ########## ###########???????????? | | # """ # # # #???????????? | | """ # """ # """ # # #???????????? | | """ # # """"" # =%[!! #???????????? | | """ ##"##### """"" # == #???????????? | | / """"" g %%[ #???????????? | | ######## """ # @ % #???????????? | | """ #??????# # % # #???????????? | | """ #??????# #wg # #???????????? | | """ #??????# ! #gwh###########???????????? | | #??????########## #?????????????????????? | | #???????????????# #?????????????????????? | | ####+######????????????# g#?????????????????????? | | ???# #????????????#Y #?????????????????????? | | ???# " #????????????# #?????????????????????? | | ???# * T #????????????# #?????????????????????? | | ???# " #???????????? ?????????????????????? | | ???# #???????????? ?????????????????????? | | ???# #???????????? ?????????????????????? | | ???########???????????? ?????????????? ??????? | | ?????????????# # ##???????????? #?????? | | ###########??# #######???????????? #?????? | | %! #??# #????????????????? #?????? | | = #??##########???########????? ??????? | | #???????????????# ###### ??????? | | ######### #???????????????# "" + ??????? | | ????????# #???????????????# ""S # ??????? | | ????????# ########????????# "" # #?????? | | ####????# ## ##???????# # """ #?????? | | "" #??### ### #???????# # """"" #?????? | | R"%#??# # =[ ##########+##### ^""""" #?????? | +----------------------------------------------------+ Best States ------------- Heat Dissipation 31 Energy Generation 15 Energy Capacity 275 Matter Stores 300 Matter Capacity 300 Sight Range 16 Terrain Scan Density 10 Armor Coverage 800 Core Shielding 20 Evasion (%) 55 Recoil Reduction 3 Offensive Hacking 10 Defensive Hacking 10 Item Schematics ----------------- None Robot Schematics ------------------ None Fabricated ------------ Nothing Alien Tech Used ----------------- None Achievements -------------- Achiever Factory Defaults Challenges ------------ None Game ------ Seed BarrageSegregatorSystem Manual? 0 Play Time 00:33:50 Cumulative 12.8 hours Start 2024.04.05 @ 14:51:59 End 2024.04.05 @ 15:24:29 Sessions 1 Manual Loads 0 Difficulty Rogue Special Mode None Game No. 27 Rogue 27 Adventurer 0 Explorer 0 Win Type - Total 0 Types 0/0/0/0/0/0/0/0/0 Lore% 19 Gallery% 28 Achievement% 25 Wizard Run 0 Options --------- Layout 0 ASCII 0 Keyboard 0 Movement Mouse Keybinds 0 Fullscreen 1 Font 18/SmallcapsGlow Map View 76x50 Zoom Use 0% Tactical HUD 1 Map Filters NONE Filters NONE Steam 1 RUN: 318dd159-871a-4c2d-b536-557c88626df4